[Event "44th Chess Olympiad Open 2022"]
[Site "Chennai"]
[Date "2022.08.02"]
[Round "5.12"]
[White "Gretarsson, Helgi Ass"]
[Black "Bosiocic, Marin"]
[Result "0-1"]
[WhiteElo "2472"]
[BlackElo "2549"]
[Annotator "TA"]
[PlyCount "84"]
[EventDate "2022.??.??"]
[TimeControl "60"]

{[%evp 9,84,17,14,16,16,23,24,15,18,20,22,14,22,31,21,33,50,56,41,15,22,0,0,0,
8,0,0,0,25,29,25,35,29,30,36,31,26,31,35,32,25,29,25,27,25,26,18,31,57,78,64,
65,123,114,125,60,69,25,14,0,0,-138,-123,-121,-116,-116,-118,-306,-287,-275,
-116,-710,-700,-1008,-751,-1279,-1024]} 1. c4 {[%emt 0:00:03]} e5 {[%emt 0:00:
00]} 2. Nc3 {[%emt 0:00:06]} Bb4 {[%emt 0:00:43]} 3. Nd5 {[%emt 0:00:12]} a5 {
[%emt 0:00:33]} 4. Nf3 {[%emt 0:01:17]} d6 {[%emt 0:00:54]} 5. a3 {[%emt 0:00:
00]} Bc5 {[%emt 0:00:19]} 6. e3 {[%emt 0:00:22] A21: English Opening: 1...e5 2
Nc3.} c6 {[%emt 0:01:25]} 7. d4 {[%emt 0:02:22]} Ba7 {[%emt 0:00:20]} 8. Nc3 {
[%emt 0:00:11] White has an edge.} (8. dxe5 cxd5 9. Qxd5 Nc6 10. Qxd6 Qxd6 11.
exd6 Bc5 $17) 8... Nd7 {[%emt 0:00:28]} 9. b4 {[%emt 0:10:22][%cal Yb2b4,Yb4b5]
[#]} Bb8 $1 $146 {[%emt 0:04:39] An important novelty.} ({Predecessor:} 9...
Ngf6 10. Bb2 Qe7 11. Be2 O-O 12. O-O Re8 13. Qb3 Bb8 14. d5 c5 15. b5 Nf8 {
0-1 (58) Sarana,A (2643)-Rakhmanov,A (2653) Moscow 2021}) 10. b5 {[%emt 0:00:
50]} Ngf6 {[%emt 0:01:31]} 11. a4 {[%emt 0:10:46]} O-O {[%emt 0:00:00]} 12. Be2
{[%emt 0:01:13]} e4 {[%emt 0:09:59]} 13. Nd2 {[%emt 0:00:22]} d5 {[%emt 0:00:
39]} 14. Qb3 {[%emt 0:10:02] And now Ba3 would win.} c5 {[%emt 0:00:00]} 15.
cxd5 {[%emt 0:04:28]} cxd4 {[%emt 0:00:49]} 16. exd4 {[%emt 0:00:39]} Nb6 {
[%emt 0:01:12][%cal Rb6d5]} 17. O-O {[%emt 0:30:09]} Re8 {[%emt 0:01:08]} 18.
Re1 {[%emt 0:00:10]} Nbxd5 {[%emt 0:18:25]} 19. Nxd5 {[%emt 0:00:29]} Nxd5 {
[%emt 0:00:19]} 20. Bc4 {[%emt 0:00:49][%csl Yd5,Ye4]} e3 $1 {[%emt 0:07:03]}
21. Rxe3 {[%emt 0:04:04]} (21. Bxd5 $2 exf2+ 22. Kxf2 Qh4+ 23. g3 Qxh2+ 24. Bg2
Rxe1 25. Kxe1 Bxg3+ 26. Kd1 Bg4+ 27. Kc2 (27. Bf3 $2 Qg1+ 28. Kc2 Rc8+ 29. Kd3
Bf5+ 30. Be4 Bf4 $19) 27... Qxg2 $19) 21... Nxe3 {[%emt 0:04:25]} 22. Bxf7+ {
[%emt 0:00:05]} Kh8 {[%emt 0:00:17]} 23. fxe3 {[%emt 0:06:34]} (23. Bxe8 Ng4
24. Qf7 Bxh2+ 25. Kf1 Nh6 26. Qf8+ Ng8 $17) 23... Rf8 {[%emt 0:22:05]
Threatens to win with ...Qf6.} 24. Ba3 {[%emt 0:01:16]} Bxh2+ $1 {[%emt 0:00:
00] [#] Decoy} 25. Kxh2 {[%emt 0:02:21]} Qc7+ {[%emt 0:00:13]} 26. Kg1 {
[%emt 0:00:04]} Rxf7 {[%emt 0:00:10]} 27. Rc1 {[%emt 0:07:03]} Qd7 {[%emt 0:00:
00]} 28. Nf3 {[%emt 0:00:33] [#] Black must now prevent Ne5.} Rxf3 {[%emt 0:00:
00]} 29. gxf3 {[%emt 0:00:01]} Qh3 {[%emt 0:00:27]} 30. Qc2 $1 {[%emt 0:00:00]}
Be6 {[%emt 0:03:11]} (30... Bd7 $1 $14) 31. Qg2 $16 {[%emt 0:01:23] aiming for
Qxh3.} Qh6 {[%emt 0:01:21]} 32. Rc3 {[%emt 0:00:48]} ({White should try} 32.
Kf2 $16) 32... Rd8 {[%emt 0:01:58][%cal Ya8d8,Yd8d5,Yd5f5]} 33. Be7 {[%emt 0:
00:35]} Rd5 {[%emt 0:01:09]} 34. f4 {[%emt 0:02:12]} Qh5 {[%emt 0:01:48]} 35.
Qc2 {[%emt 0:01:00] Against Qd1+} (35. Rc1 $11 {remains equal.}) 35... Qg4+ $17
{[%emt 0:00:55]} 36. Qg2 {[%emt 0:00:24] Strongly threatening Qxg4.} Qd1+ {
[%emt 0:00:52]} 37. Qf1 {[%emt 0:00:01]} Qxa4 {[%emt 0:00:39]} 38. f5 $2 {
[%emt 0:00:48]} (38. Bc5 $17) 38... Rxf5 $19 {[%emt 0:00:37]} 39. Qc1 {[%emt 0:
00:15][%cal Yc3c8]} Qa2 {[%emt 0:00:25]} ({Inferior is} 39... Qxb5 40. e4 Rh5
41. d5 $17) ({Weaker is} 39... Rxb5 40. Ra3 (40. Rc8+ $2 Bg8 $19) 40... Qc4 41.
Qxc4 Bxc4 42. e4 $17) (39... h6 $19 {is more deadly. Hoping for ...Rf3.} 40.
Rc5 Qa2 41. Rxf5 Bxf5) 40. Rc8+ $2 {[%emt 0:01:15]} Bg8 {[%emt 0:00:07] ( -> ..
.Qf2+). Black is clearly winning.} 41. Qc2 {[%emt 0:26:45] Inhibits Qf2+.} Qe6
{[%emt 0:01:58]} 42. e4 {[%emt 0:00:04]} Rf4 {[%emt 0:01:13] Weighted Error
Value: White=0.55/Black=0.09 (flawless)} 0-1

[Event "44th Chess Olympiad Open 2022"]
[Site "Chennai"]
[Date "2022.08.02"]
[Round "5.13"]
[White "Navara, David"]
[Black "Batsuren, Dambasuren"]
[Result "1-0"]
[WhiteElo "2688"]
[BlackElo "2518"]
[Annotator "TA"]
[PlyCount "63"]
[EventDate "2022.??.??"]
[TimeControl "60"]

{[%evp 9,63,7,16,4,10,-3,42,43,40,33,31,14,29,-20,-17,-53,-39,-41,-28,-58,-61,
-64,-89,-90,-51,-41,0,0,37,20,69,67,155,177,226,222,231,239,225,218,224,107,
100,15,72,43,494,494,496,470,483,457,464,458,29997,29998]} 1. e4 {[%emt 0:00:
00]} c6 {[%emt 0:00:17]} 2. d4 {[%emt 0:00:12]} d5 {[%emt 0:00:06]} 3. e5 {
[%emt 0:00:03]} c5 {[%emt 0:00:22]} 4. dxc5 {[%emt 0:02:28]} e6 {[%emt 0:00:12]
} 5. a3 {[%emt 0:00:09]} Bxc5 {[%emt 0:00:52]} 6. Qg4 {[%emt 0:00:15] B12:
Caro-Kann: Advance Variation.} Ne7 {[%emt 0:01:13]} 7. Nf3 {[%emt 0:00:31]
Strongly threatening b4.} O-O {[%emt 0:01:58]} 8. b4 $5 {[%emt 0:04:47] White
is slightly better. A promising side line.} Bb6 {[%emt 0:00:23]} 9. Bd3 {
[%emt 0:00:47][%cal Yd3h7]} Ng6 {[%emt 0:03:33]} 10. Bb2 {[%emt 0:03:48]} f5 {
[%emt 0:00:51]} 11. Qg3 {[%emt 0:02:15]} (11. exf6 $142 e5 12. Qh5) 11... a5
$11 {[%emt 0:07:34]} 12. h4 {[%emt 0:04:29]} axb4 {[%emt 0:04:32] [#]} 13. h5
$146 {[%emt 0:00:43]} ({Predecessor:} 13. axb4 Rxa1 14. Bxa1 Qe7 15. Bc3 Nc6
16. h5 Nh8 17. h6 g6 18. b5 Nb8 19. Qg5 {½-½ (32) Lupini,S (2391)-Kostanjsek,
Z (2355) ICCF email 2019}) 13... Nh8 {[%emt 0:02:52]} 14. h6 {[%emt 0:04:47]
[%csl Gh6][%cal Rg3g7]} g6 {[%emt 0:01:30]} 15. axb4 {[%emt 0:00:22]} Rxa1 {
[%emt 0:00:23]} 16. Bxa1 {[%emt 0:00:10]} Nc6 {[%emt 0:02:41]} 17. Bc3 {
[%emt 0:15:10][%cal Ya1c3,Yc3d2,Yd2g5,Yg5f6]} d4 {[%emt 0:15:00]} 18. Bd2 $36 {
[%emt 0:00:10] Black is under pressure.} Qd5 {[%emt 0:00:00]} 19. b5 {[%emt 0:
02:20]} Na7 {[%emt 0:05:03]} (19... Na5 $11 {was preferrable.}) 20. Qh4 $1 $14
{[%emt 0:11:23]} Qc5 {[%emt 0:14:24] Inhibits Bb4.} (20... Bc5 $14) 21. Bg5 $16
{[%emt 0:21:26] Threatens to win with Be7.} Re8 {[%emt 0:04:28] Against Be7} (
21... Nf7 $2 22. Be7 Ba5+ 23. Ke2 $18) (21... Rf7 $142 22. Nbd2 Nxb5) 22. Bf6
$18 {[%emt 0:00:28] Black must now prevent Bxh8.} Nf7 {[%emt 0:03:06]} 23. Qg3
{[%emt 0:00:35][%cal Yg3g6]} Nh8 {[%emt 0:00:00]} 24. Qg5 {[%emt 0:03:00]
Hoping for Bxh8.} Qf8 {[%emt 0:01:45]} (24... Nf7 25. Qxg6+ $3 hxg6 26. h7+ Kf8
27. h8=Q+ Nxh8 28. Rxh8+ Kf7 29. Ng5#) 25. g4 {[%emt 0:09:27]} (25. Nbd2 $18 {
and the rest is easy.}) 25... Bd7 $16 {[%emt 0:03:35] [#]} (25... Nf7 $2 {
gets mated.} 26. Qxg6+ $3 hxg6 27. h7#) 26. Bc4 {[%emt 0:02:25] 0x0.
0019ec0bb88adp-1022s more active pieces. The black rooks are badly placed.} (
26. gxf5 $1 $16 exf5 27. Kd1 (27. Bc4+ Be6 $14)) 26... fxg4 {[%emt 0:04:43]} (
26... Ba5+ $11 27. Nbd2 fxg4 28. Qxg4 (28. Nxd4 Qc5 $15) 28... Nxb5) 27. Qxg4 {
[%emt 0:00:21] aiming for Bd3.} Bd8 $2 {[%emt 0:07:10] Black cannot hold the
game after this.} (27... Nxb5 $14 28. Nbd2 Ba5) 28. Qxd4 $18 {[%emt 0:04:29]}
Bxb5 {[%emt 0:02:03]} 29. Bxb5 {[%emt 0:00:08]} Nxb5 {[%emt 0:00:19]} 30. Qd7 {
[%emt 0:00:06][%csl Yb5,Yb7][%cal Yd7h7] Threatening mate with Qxh7+!} Bxf6 {
[%emt 0:02:58]} 31. exf6 {[%emt 0:00:07][%cal Yd7h7] Intending Qxh7+! and mate.
} (31. Qxb5 Be7 $11) 31... Nd6 {[%emt 0:00:10] [#]} (31... Nf7 $18 32. Qxb5 Nd6
) 32. Qxh7+ $3 {[%emt 0:00:06] Weighted Error Value: White=0.14 (very precise)
/ Black=0.56} 1-0

[Event "44th Chess Olympiad Open 2022"]
[Site "Chennai"]
[Date "2022.08.02"]
[Round "5.13"]
[White "Michalik, Peter"]
[Black "Bilguun, Sumiya"]
[Result "1/2-1/2"]
[WhiteElo "2559"]
[BlackElo "2463"]
[Annotator "TA"]
[PlyCount "99"]
[EventDate "2022.??.??"]
[TimeControl "60"]

{[%evp 18,99,52,38,51,0,0,0,0,0,23,27,22,0,0,-19,0,-33,-33,-39,-26,-29,6,0,7,5,
0,0,0,0,0,0,0,10,6,4,12,-22,-11,-14,0,-42,-41,-42,-7,-45,0,0,0,-32,-45,-31,-29,
-33,-41,-35,-34,-95,-95,-93,-80,-80,-80,-80,-80,-80,-80,-80,-80,-80,-80,-80,
-80,-80,-80,-80,-80,-80,-80,-80,-80,-80,-49,-80]} 1. c4 {[%emt 0:00:03]} c5 {
[%emt 0:00:07]} 2. Nf3 {[%emt 0:00:10]} Nf6 {[%emt 0:00:06]} 3. Nc3 {[%emt 0:
00:00]} g6 {[%emt 0:01:46]} 4. e4 {[%emt 0:01:21]} Nc6 {[%emt 0:03:30]} 5. d4 {
[%emt 0:00:35]} cxd4 {[%emt 0:00:25]} 6. Nxd4 {[%emt 0:00:06]} d6 {[%emt 0:00:
00]} 7. Be2 {[%emt 0:01:17]} Nxd4 {[%emt 0:00:07]} 8. Qxd4 {[%emt 0:00:06]} Bg7
{[%emt 0:00:06]} 9. Be3 {[%emt 0:03:48]} O-O {[%emt 0:00:07]} 10. Qd2 {[%emt 0:
00:00]} a5 {[%emt 0:00:30] [#] B36: Sicilian: Maroczy Bind: Gurgenidze System.}
11. O-O-O $146 {[%emt 0:04:18]} (11. Rd1 $14) ({Predecessor:} 11. O-O a4 12.
Rfd1 Qa5 13. Bd4 Bd7 14. Bxf6 Bxf6 15. Nd5 Qxd2 16. Nxf6+ Kg7 17. Rxd2 Kxf6 18.
c5 {0-1 (40) Erigaisi,A (2626)-Xiong,J (2700) Chess.com INT 2021}) 11... Be6
$11 {[%emt 0:16:48]} 12. Kb1 {[%emt 0:00:20]} Rc8 {[%emt 0:00:59] The position
is equal.} 13. c5 {[%emt 0:02:23][%cal Rc5d6]} Qc7 {[%emt 0:36:42]} 14. cxd6 {
[%emt 0:04:45]} exd6 {[%emt 0:00:50][%cal Ye7d6,Yd6d5,Yd5d4]} 15. f3 {[%emt 0:
00:28] Strongly threatening Nb5.} (15. Qxd6 Qxc3 16. bxc3 Nxe4 $17) 15... d5 $1
{[%emt 0:02:23]} 16. Bf4 {[%emt 0:07:01]} ({Don't play} 16. exd5 Nxd5 $1 17.
Nxd5 Bxd5 $17) 16... Qc5 {[%emt 0:08:58]} 17. e5 {[%emt 0:04:54] Black must
now prevent Be3.} ({Don't go for} 17. Nxd5 $2 Bxd5 18. exd5 {[#]} Nxd5 $1 $19)
({But not} 17. exd5 Nxd5 $1 18. Nxd5 Bxd5 $17) 17... d4 {[%emt 0:00:41]
Prevents Be3.} 18. Qxd4 {[%emt 0:00:28]} Qxd4 {[%emt 0:02:06]} 19. Rxd4 {
[%emt 0:00:08]} Nd7 {[%emt 0:03:09]} (19... Nh5 $5 {[%cal Re6f5]} 20. g3 Nxf4
21. gxf4 f6 $15) 20. Nd5 {[%emt 0:08:10]} Kh8 {[%emt 0:03:07]} 21. Rhd1 {
[%emt 0:05:33]} Nxe5 {[%emt 0:03:07]} 22. g4 {[%emt 0:00:06] Prevents Bf5+.} b5
{[%emt 0:01:58]} 23. Re4 {[%emt 0:07:23]} Nc4 {[%emt 0:01:55]} 24. Bxc4 {
[%emt 0:00:28]} Rxc4 {[%emt 0:00:23]} 25. Rxc4 {[%emt 0:01:47]} bxc4 {[%emt 0:
00:03]} 26. Bc7 {[%emt 0:00:18]} a4 {[%emt 0:00:00]} 27. g5 {[%emt 0:01:20]} (
27. Nb6 $5 {[%cal Rb6a4]}) 27... Bf5+ {[%emt 0:00:00]} 28. Kc1 {[%emt 0:02:32]}
Re8 {[%emt 0:00:19] And now ...Re2 would win.} 29. Ba5 {[%emt 0:02:31]} Re2 {
[%emt 0:00:32][%csl Ge2][%cal Rg7b2]} 30. Rd2 {[%emt 0:09:03]} Re1+ {[%emt 0:
00:10]} 31. Rd1 {[%emt 0:00:03]} Re2 {[%emt 0:00:00][%csl Ge2][%cal Rg7b2]} (
31... Bxb2+ $5 32. Kd2 Re5 $15) 32. Rd2 {[%emt 0:00:00]} Re1+ {[%emt 0:01:36]}
33. Rd1 {[%emt 0:00:05] [#]} Bxb2+ $1 {[%emt 0:00:00] A strong pair of Bishops.
} 34. Kd2 {[%emt 0:00:17]} Rxd1+ {[%emt 0:00:00]} (34... Re5 {looks sharper.}
35. Bc3 Bxc3+ 36. Nxc3 Kg7) 35. Kxd1 $15 {[%emt 0:00:05] Endgame KBB-KBN} Kg8 {
[%emt 0:02:22]} 36. Kd2 {[%emt 0:03:53]} Be6 {[%emt 0:00:52]} 37. Nf6+ {
[%emt 0:01:34]} (37. Bc3 $15 Ba3 38. Bb4) 37... Bxf6 $17 {[%emt 0:00:30]} 38.
gxf6 {[%emt 0:00:05] KB-KB} c3+ {[%emt 0:00:04]} 39. Kxc3 {[%emt 0:09:56]} Bxa2
{[%emt 0:00:03]} 40. f4 {[%emt 0:00:05]} Kf8 {[%emt 0:00:04]} 41. Bb4+ {
[%emt 0:31:10]} Ke8 {[%emt 0:00:00]} 42. Kd4 {[%emt 0:00:04]} Kd7 {[%emt 0:00:
23]} 43. Ke5 {[%emt 0:00:06]} h5 {[%emt 0:02:41]} 44. h4 {[%emt 0:00:00]} Kc6 {
[%emt 0:00:00] Hoping for ...Kb5.} 45. Ba3 {[%emt 0:00:00]} Kb5 {[%emt 0:00:00]
aiming for ...Kc4.} 46. Kd4 {[%emt 0:00:00]} Be6 {[%emt 0:00:00]} 47. Bf8 {
[%emt 0:00:00]} Kc6 {[%emt 0:00:00]} 48. Ba3 {[%emt 0:00:00]} Bb3 {[%emt 0:00:
00]} 49. Ke5 {[%emt 0:00:00]} Kd7 {[%emt 0:00:00]} 50. Bf8 {[%emt 0:00:00]
Weighted Error Value: White=0.08 (flawless) /Black=0.07 (flawless)} 1/2-1/2

[Event "44th Chess Olympiad Open 2022"]
[Site "Chennai"]
[Date "2022.08.02"]
[Round "5.13"]
[White "Gan-Erdene, Sugar"]
[Black "Zwardon, Vojtech"]
[Result "0-1"]
[WhiteElo "2428"]
[BlackElo "2503"]
[Annotator "RC"]
[PlyCount "86"]
[EventDate "2022.??.??"]
[TimeControl "60"]

1. d4 {[%emt 0:00:03]} Nf6 {[%emt 0:00:02]} 2. c4 {[%emt 0:00:13]} e6 {[%emt 0:
00:00]} 3. g3 {[%emt 0:00:23]} d5 {[%emt 0:00:04]} 4. Nf3 {[%emt 0:00:38]} dxc4
{[%emt 0:00:35]} 5. Bg2 {[%emt 0:00:24]} c6 {[%emt 0:00:07]} 6. Ne5 {[%emt 0:
00:00]} Bb4+ {[%emt 0:00:06]} 7. Nc3 {[%emt 0:02:54]} Nd5 {[%emt 0:03:39]} 8.
O-O {[%emt 0:06:24]} O-O {[%emt 0:17:42]} 9. Qc2 {[%emt 0:30:03]} b5 {[%emt 0:
00:00]} 10. a4 {[%emt 0:03:25]} f6 {[%emt 0:04:42]} 11. Ng4 {[%emt 0:08:03]}
Qd7 {[%emt 0:12:33]} 12. axb5 {[%emt 0:12:19]} cxb5 {[%emt 0:01:34]} 13. e4 {
[%emt 0:00:36]} Nxc3 {[%emt 0:00:44]} 14. bxc3 {[%emt 0:00:07]} Be7 {[%emt 0:
00:00]} 15. e5 {[%emt 0:02:20]} Bb7 {[%emt 0:03:09]} 16. Bxb7 {[%emt 0:01:04]}
Qxb7 {[%emt 0:00:04]} 17. exf6 {[%emt 0:00:10]} Bxf6 {[%emt 0:00:57]} 18. Qe2 {
[%emt 0:02:07]} Qd5 {[%emt 0:05:13]} 19. Re1 {[%emt 0:02:27]} Nd7 {[%emt 0:00:
00]} 20. Qxe6+ {[%emt 0:01:45]} Qxe6 {[%emt 0:00:01]} 21. Rxe6 {[%emt 0:00:08]}
Nb6 {[%emt 0:00:58]} 22. Ba3 {[%emt 0:07:10]} Rf7 {[%emt 0:02:29]} 23. Rb1 {
[%emt 0:04:17]} Nd5 {[%emt 0:00:22]} 24. Rxb5 {[%emt 0:03:02]} Nc7 {[%emt 0:00:
00]} 25. Ree5 {[%emt 0:01:55]} Nxb5 {[%emt 0:01:29]} 26. Rxb5 {[%emt 0:00:05]}
a5 {[%emt 0:01:02]} 27. Ne3 {[%emt 0:01:56]} Be7 {[%emt 0:01:35]} 28. Nxc4 {
[%emt 0:03:56]} a4 {[%emt 0:00:04]} 29. Rb2 {[%emt 0:02:26]} Bxa3 {[%emt 0:00:
00]} 30. Nxa3 {[%emt 0:00:05]} Rf3 {[%emt 0:00:03]} 31. Nb5 {[%emt 0:02:12]}
Ra5 {[%emt 0:04:44]} 32. Kg2 {[%emt 0:00:26]} Rd3 {[%emt 0:00:44]} 33. Nd6 {
[%emt 0:01:34]} Ra8 {[%emt 0:01:26]} 34. Nb5 {[%emt 0:00:53]} Rb8 {[%emt 0:00:
00]} 35. Rb1 {[%emt 0:00:42]} Rd2 {[%emt 0:00:20]} 36. c4 {[%emt 0:00:28]} Rxd4
{[%emt 0:01:50]} 37. Rb4 {[%emt 0:00:14]} Rd2 {[%emt 0:00:05]} 38. Rxa4 {
[%emt 0:00:10]} Rf8 {[%emt 0:00:02]} 39. Nc3 {[%emt 0:01:06]} Rfxf2+ {[%emt 0:
00:00]} 40. Kh3 {[%emt 0:00:10]} Rxh2+ {[%emt 0:00:56]} 41. Kg4 {[%emt 0:30:04]
} Rd4+ {[%emt 0:30:24]} 42. Kf5 {[%emt 0:00:42]} h6 {[%emt 0:05:00]} 43. Nd5 {
[%emt 0:00:39]} Rh5+ {[%emt 0:00:17]} 0-1

[Event "44th Chess Olympiad Open 2022"]
[Site "Chennai"]
[Date "2022.08.02"]
[Round "5.13"]
[White "Amartuvshin, Ganzorig"]
[Black "Nguyen, Thai Dai Van"]
[Result "0-1"]
[WhiteElo "2409"]
[BlackElo "2629"]
[Annotator "TA"]
[PlyCount "106"]
[EventDate "2022.??.??"]
[TimeControl "60"]

{[%evp 19,106,8,27,12,19,3,13,20,16,-14,0,-10,4,8,11,0,0,0,15,22,26,27,27,-25,
50,-21,0,-358,-326,-344,-337,-336,-332,-345,-312,-327,-322,-371,-333,-391,-372,
-539,-540,-606,-635,-626,-652,-868,-703,-648,-686,-693,-675,-696,-681,-633,
-626,-748,-738,-748,-735,-737,-725,-885,-870,-861,-769,-688,-597,-1485,-1255,
-12839,-835,-29982,-29983,-29983,-29984,-29984,-29985,-29987,-29988,-29988,
-29989,-29989,-29990,-29990,-29991,-29994,-29989]} 1. d4 {[%emt 0:00:02]} d5 {
[%emt 0:00:14]} 2. c4 {[%emt 0:00:05]} c6 {[%emt 0:00:10]} 3. Nc3 {[%emt 0:00:
00]} Nf6 {[%emt 0:00:07]} 4. e3 {[%emt 0:00:11]} e6 {[%emt 0:00:38]} 5. Nf3 {
[%emt 0:00:10]} Nbd7 {[%emt 0:00:25]} 6. Qc2 {[%emt 0:00:12]} Bd6 {[%emt 0:00:
00]} 7. Bd3 {[%emt 0:00:25]} dxc4 {[%emt 0:00:25]} 8. Bxc4 {[%emt 0:00:07]} b5
{[%emt 0:00:06]} 9. Be2 {[%emt 0:00:09]} O-O {[%emt 0:00:12]} 10. O-O {[%emt 0:
00:00]} Re8 {[%emt 0:00:54]} 11. Ng5 {[%emt 0:14:32] [#] D46: Semi-Slav: 5 e3
Nbd7 6 Bd3, Black avoids the Meran.} Bb7 $146 {[%emt 0:00:36]} ({Predecessor:} 
11... Qc7 12. f4 b4 13. Nce4 h6 14. Nxd6 Qxd6 15. Nf3 c5 16. Rd1 Bb7 17. dxc5
Qxc5 18. Qxc5 Nxc5 19. Bd2 a5 20. Rac1 Rec8 21. Ne5 Bd5 {½-½ (21) Horvath,C 
(2546)-Ruck,R (2575) Budapest 2004}) 12. Nce4 {[%emt 0:16:11]} Bf8 {[%emt 0:00:
00]} 13. Nxf6+ {[%emt 0:04:56] The position is equal.} Nxf6 {[%emt 0:00:10]}
14. Bd3 {[%emt 0:00:31][%cal Rd3h7]} (14. Bd2 {is more complex.} b4 15. Bh5 g6
16. Bf3) 14... g6 {[%emt 0:00:14]} 15. Nf3 {[%emt 0:01:36]} Rc8 {[%emt 0:26:35]
} 16. Qe2 {[%emt 0:01:37]} Nd7 {[%emt 0:06:55][%cal Yf6d7,Yd7c5,Yc5d3]} 17. e4
{[%emt 0:07:10]} a6 {[%emt 0:02:25]} 18. a4 {[%emt 0:00:40]} e5 {[%emt 0:04:15]
Strongly threatening ...exd4.} 19. axb5 {[%emt 0:07:21]} cxb5 {[%emt 0:01:13] 
[#] Hoping for ...exd4.} 20. d5 {[%emt 0:00:22]} Nc5 {[%emt 0:00:00]} 21. Bg5 {
[%emt 0:04:26]} (21. Bc2 $142) 21... Qd6 {[%emt 0:07:41]} (21... f6 $11 22. Be3
Nxd3 23. Qxd3 f5) 22. Nd2 {[%emt 0:00:56]} ({Better is} 22. Bc2 $14) 22... f5
$11 {[%emt 0:10:33] ...h6 is the strong threat.} 23. Be3 {[%emt 0:01:27] Black
continues to play with concentration.} (23. Bb1 $11 {and White stays safe.})
23... Nxd3 $19 {[%emt 0:00:32]} 24. Qxd3 {[%emt 0:00:19]} f4 {[%emt 0:00:27]} (
24... fxe4 $2 25. Nxe4 Qb4 26. Nf6+ Kg7 27. Nxe8+ Rxe8 28. Rac1 $18) 25. Nb3 {
[%emt 0:05:56]} ({Much weaker is} 25. Ba7 Ra8 26. Be3 fxe3) 25... fxe3 {
[%emt 0:00:10]} 26. Qxe3 {[%emt 0:00:08]} Rc7 {[%emt 0:02:13]} 27. Na5 {
[%emt 0:00:44]} Ba8 {[%emt 0:02:00]} 28. g3 {[%emt 0:00:00]} Qc5 {[%emt 0:00:
35]} 29. Qf3 {[%emt 0:01:28]} Qb6 {[%emt 0:01:26]} 30. h4 {[%emt 0:03:38]} (30.
Nb3 $142) 30... Bb4 {[%emt 0:05:28][%cal Yf8b4,Yb4c3,Yc3d4]} 31. Nb3 {[%emt 0:
00:14]} Rc2 {[%emt 0:01:05]} 32. Qd1 {[%emt 0:02:37]} Rxb2 {[%emt 0:01:14] [#]
White must now prevent ...Rf8.} 33. Nc1 {[%emt 0:00:13]} Bc3 {[%emt 0:02:57]
And now ...Rd2 would win.} 34. Ra2 {[%emt 0:00:55]} Rxa2 {[%emt 0:00:13]} 35.
Nxa2 {[%emt 0:00:08]} Bd4 {[%emt 0:00:00]} 36. Kg2 {[%emt 0:00:10]} Bb7 {
[%emt 0:01:14]} 37. h5 {[%emt 0:00:11]} g5 {[%emt 0:01:44][%cal Yg6g5,Yg5g4]}
38. Qg4 {[%emt 0:00:38]} Qf6 {[%emt 0:00:37]} 39. Nb4 {[%emt 0:03:08]} Bc8 {
[%emt 0:01:37]} 40. Qe2 {[%emt 0:00:00]} Bd7 {[%emt 0:00:59]} 41. Qa2 {[%emt 0:
30:12]} g4 {[%emt 0:31:37]} 42. Nc6 {[%emt 0:01:58]} Bxc6 {[%emt 0:07:57]} 43.
dxc6+ {[%emt 0:00:09]} Qf7 {[%emt 0:00:23]} 44. Qxa6 {[%emt 0:00:41]} Qxh5 {
[%emt 0:02:22] ( -> ...Qh3+)} 45. Qa3 {[%emt 0:01:48]} Qf7 {[%emt 0:01:25]} 46.
Qc1 {[%emt 0:00:32]} Qf3+ {[%emt 0:03:56] Black mates.} 47. Kh2 {[%emt 0:00:04]
} Bxf2 {[%emt 0:00:53]} 48. Qg5+ {[%emt 0:00:30]} Kh8 {[%emt 0:00:04]} 49. Rxf2
{[%emt 0:00:10]} Qxf2+ {[%emt 0:00:06]} 50. Kh1 {[%emt 0:00:02]} Qf1+ {[%emt 0:
00:48]} 51. Kh2 {[%emt 0:00:03]} Qh3+ {[%emt 0:00:05]} 52. Kg1 {[%emt 0:00:04]}
Qxg3+ {[%emt 0:00:00]} 53. Kh1 {[%emt 0:00:04]} Qf3+ {[%emt 0:00:06] Weighted
Error Value: White=0.56/Black=0.16 (very precise)} 0-1

[Event "44th Chess Olympiad Open 2022"]
[Site "Chennai"]
[Date "2022.08.02"]
[Round "5.14"]
[White "Ivic, Velimir"]
[Black "Taher, Yoseph Theolifus"]
[Result "1/2-1/2"]
[WhiteElo "2581"]
[BlackElo "2463"]
[Annotator "RC"]
[PlyCount "62"]
[EventDate "2022.??.??"]
[TimeControl "60"]

1. e4 {[%emt 0:00:08]} c6 {[%emt 0:00:26]} 2. d4 {[%emt 0:01:49]} d5 {[%emt 0:
00:00]} 3. e5 {[%emt 0:01:05]} Bf5 {[%emt 0:00:07]} 4. Nf3 {[%emt 0:00:09]} e6
{[%emt 0:00:06]} 5. Be2 {[%emt 0:00:06]} c5 {[%emt 0:00:14]} 6. O-O {[%emt 0:
00:00]} Nc6 {[%emt 0:01:36]} 7. Be3 {[%emt 0:05:23]} cxd4 {[%emt 0:00:07]} 8.
Nxd4 {[%emt 0:00:23]} Nge7 {[%emt 0:00:14]} 9. c4 {[%emt 0:04:03]} dxc4 {
[%emt 0:05:44]} 10. Bxc4 {[%emt 0:05:59]} Nxd4 {[%emt 0:01:18]} 11. Qxd4 {
[%emt 0:07:07]} Qxd4 {[%emt 0:00:37]} 12. Bxd4 {[%emt 0:00:04]} a6 {[%emt 0:00:
00]} 13. Nd2 {[%emt 0:08:10]} Nc6 {[%emt 0:00:54]} 14. Bc3 {[%emt 0:00:34]} b5
{[%emt 0:05:30]} 15. Be2 {[%emt 0:16:56]} b4 {[%emt 0:06:50]} 16. Bf3 {[%emt 0:
00:00]} O-O-O {[%emt 0:00:14]} 17. Rac1 {[%emt 0:03:14]} Kb8 {[%emt 0:00:59]}
18. Bxc6 {[%emt 0:10:43]} bxc3 {[%emt 0:00:06]} 19. Ne4 {[%emt 0:02:23]} cxb2 {
[%emt 0:02:31]} 20. Rc2 {[%emt 0:05:05]} Ba3 {[%emt 0:01:01]} 21. Rc3 {[%emt 0:
00:00]} Be7 {[%emt 0:00:14]} 22. Rb1 {[%emt 0:05:02]} Ka7 {[%emt 0:05:35]} 23.
Rb3 {[%emt 0:07:43]} Rb8 {[%emt 0:00:05]} 24. R1xb2 {[%emt 0:00:26]} Rxb3 {
[%emt 0:00:04]} 25. Rxb3 {[%emt 0:00:03]} Rb8 {[%emt 0:00:04]} 26. Nd6 {
[%emt 0:04:43]} Rxb3 {[%emt 0:02:39]} 27. axb3 {[%emt 0:00:02]} Kb6 {[%emt 0:
00:00]} 28. Nxf5 {[%emt 0:01:29]} exf5 {[%emt 0:00:05]} 29. Bd5 {[%emt 0:02:08]
} f6 {[%emt 0:00:21]} 30. exf6 {[%emt 0:00:18]} Bxf6 {[%emt 0:00:05]} 31. Kf1 {
[%emt 0:00:05]} Kc5 {[%emt 0:00:48]} 1/2-1/2